Cogmind - Beta 14 @@@ ROGUE MODE // 2024.12.26 @ 22:22:56 Player: Derk Result: Destroyed by Y-45 Defender with Heavy Assault Rifle Performance ------------- Evolutions (2) 1000 Regions Visited (7) 1400 Robots Destroyed (68) 340 Value Destroyed (2071) 2071 Prototype IDs (0) 0 Alien Tech Used (0) 0 Bonus (874) 874 TOTAL SCORE: 5685 Bonus ------- Follower Combat Kills 174 Entered Garrisons 200 Used RIF Installer 500 Cogmind --------- Core Integrity 0/550 Matter 290/300 Energy 265/265 System Corruption 4% Temperature Warm (127) Movement Treading (160) Location -8/Materials Parts ------- > --- POWER (1) -------- Improved Ion Engine > --- PROPULSION (3) --- Light Treads Light Treads Improved Treads > --- UTILITY (5) ------ Large Storage Unit Melee Analysis Suite Heavy Armor Plating Relay Coupler [NC] (19) > --- WEAPON (2) ------- Heavy Assault Rifle Ripper > --- INVENTORY (15) --- Light Nuclear Core Light Treads Light Treads Light Treads Advanced Heat Sink High-capacity Storage Unit Improved Signal Interpreter Improved Signal Interpreter Hacking Suite Relay Coupler [Grunt] (21) Particle Gun Heavy Assault Rifle Remote Datajack Mining Laser Heavy Flail Peak State ------------ > --- POWER ------------ Light Angular Momentum Engine > --- PROPULSION ------- VSS Leg Improved Carbon-fiber Leg Improved Carbon-fiber Leg > --- UTILITY ---------- Heat Sink Improved Heat Sink Large Storage Unit Melee Analysis Suite > --- WEAPON ----------- Heavy Laser Heavy Assault Rifle > --- INVENTORY -------- Light Ion Engine Nuclear Core Light Fission Core Light Treads Light Treads Light Treads Light Treads Aluminum Leg High-capacity Storage Unit High-capacity Matter Pod Heavy Assault Rifle Grenade Launcher Mining Laser [Rating: 32] Favorites ----------- Power Ion Engine Engine Ion Engine Power Core Light Nuclear Core Propulsion Light Treads Treads Light Treads Leg Improved Carbon-fiber Leg Wheel Compact Wheel Utility Large Storage Unit Device Improved Heat Sink Storage Large Storage Unit Processor Melee Analysis Suite Hackware Relay Coupler [NC] Protection Improved Propulsion Shielding Weapon Assault Rifle Energy Gun EM Pulse Gun Ballistic Gun Assault Rifle Launcher Grenade Launcher Special Weapon Mining Laser Slashing Weapon Ripper Build | -11 -10 -10 -10 -9 -8 -8 -8 ------- Run | Yrd Mat Min Exi Min Mat Gar Mat Slots Evolved 4 | . . . . . 4 . . Power . | . . . . . . . . Propulsion 1 | . . . . . 1 . . Utility 3 | . . . . . 3 . . Weapon . | . . . . . . . . Parts Attached 110 | 8 16 2 . 2 35 36 11 Power 13 | 1 2 . . . 4 4 2 Engine 7 | 1 2 . . . 2 1 1 Core 6 | . . . . . 2 3 1 Reactor . | . . . . . . . . Propulsion 39 | 2 2 . . 2 12 18 3 Treads 22 | . 2 . . . 7 10 3 Leg 13 | . . . . . 5 8 . Wheel 4 | 2 . . . 2 . . . Hover . | . . . . . . . . Flight . | . . . . . . . . Utility 22 | 2 4 . . . 7 6 3 Device 13 | 1 2 . . . 5 4 1 Storage 4 | 1 2 . . . . 1 . Processor 1 | . . . . . 1 . . Hackware 1 | . . . . . . . 1 Protection 3 | . . . . . 1 1 1 Artifact . | . . . . . . . . Weapon 36 | 3 8 2 . . 12 8 3 Energy Gun 5 | 1 1 . . . 1 2 . Energy Cannon . | . . . . . . . . Ballistic Gun 19 | 2 3 1 . . 8 4 1 Ballistic Cannon . | . . . . . . . . Launcher 5 | . 1 1 . . 2 1 . Special Weapon 5 | . 3 . . . 1 . 1 Impact Weapon . | . . . . . . . . Slashing Weapon 2 | . . . . . . 1 1 Piercing Weapon . | . . . . . . . . Special Melee Weapon . | . . . . . . . . Unidentified Prototypes . | . . . . . . . . Parts Lost 39 | . 2 . . 4 13 18 2 Power 7 | . 1 . . . 3 2 1 Propulsion 17 | . 1 . . 3 3 10 . Utility 6 | . . . . . 3 3 . Weapon 9 | . . . . 1 4 3 1 Highest Loss Streak 13 | . 1 . . 4 5 13 1 To Critical Strikes . | . . . . . . . . Average Slot Usage (%) 95 | . 100 100 100 100 89 88 97 Engine 8 | . 14 14 14 14 1 2 3 Core 2 | . . . . . 6 6 5 Treads 17 | . 7 28 28 28 11 13 27 Leg 5 | . . . . . 14 12 . Wheel 4 | . 20 . . . . . . Device 16 | . 13 14 14 14 23 17 15 Storage 12 | . 14 14 14 14 9 9 9 Processor 1 | . . . . . . 9 9 Protection 1 | . . . . . 4 . 1 Energy Gun 2 | . 7 . . . 3 2 . Ballistic Gun 15 | . 16 18 14 14 13 13 8 Launcher 3 | . . 9 14 14 . . . Peak Build Rating 32 | 7 10 10 11 11 31 32 29 Average Rating 15 | 4 7 10 10 10 21 24 27 On Entrance 12 | . 7 10 10 11 9 23 26 Naked Turns . | . . . . . . . . Heaviest Build 48 | 15 31 31 31 31 35 38 48 Greatest Support 63 | 26 40 40 40 40 60 60 63 Greatest Overweight (x) 3 | . 1 . . 1 2 3 . Average Overweight (x) . | . . . . . . . . Largest Inventory Capacity 25 | 8 25 15 15 15 15 20 15 Average Capacity 15 | 7 15 15 15 15 15 15 15 Most Carried 15 | 7 15 15 15 15 15 15 15 Average Carried 12 | 4 11 14 14 14 12 11 14 Final Capacity 15 | 8 15 15 15 15 15 15 15 Final Carried 15 | 7 15 15 15 13 11 13 15 Class Distribution -------------------- 69% | Mutant 30% | Scavenger-Mutant Dominant Class ---------------- Mutant | -10/Materials Mutant | -10/Mines Mutant | -10/Exiles Mutant | -9/Mines Mutant | -8/Materials Scavenger-Mutant | -8/Garrison Scavenger-Mutant | -8/Materials Resources | -11 -10 -10 -10 -9 -8 -8 -8 ----------- Run | Yrd Mat Min Exi Min Mat Gar Mat Matter Collected 1991 | 298 367 80 22 15 570 514 125 Remotely . | . . . . . . . . Salvage Created 2402 | 101 615 37 . . 702 831 116 Parts 138 | 10 39 7 . . 37 36 9 Haulers Intercepted 2 | . 1 . . . 1 . . Recyclers Shooed . | . . . . . . . . Parts Field Recycled . | . . . . . . . . Retrieved Matter . | . . . . . . . . Parts Self-Destructed . | . . . . . . . . Prevented . | . . . . . . . . Kills | -11 -10 -10 -10 -9 -8 -8 -8 ------- Run | Yrd Mat Min Exi Min Mat Gar Mat Combat Hostiles Destroyed 59 | . 16 6 . . 18 17 2 Melee 3 | . . . . . . 1 2 Guns 45 | . 16 1 . . 13 15 . AOE 11 | . . 5 . . 5 1 . Classes Destroyed 11 | 2 5 . . . 3 1 . Worker 1 | . 1 . . . . . . Builder 2 | . . . . . 2 . . Tunneler 2 | 2 . . . . . . . Hauler 2 | . 1 . . . 1 . . Recycler 1 | 1 . . . . . . . Operator 1 | . 1 . . . . . . Swarmer 19 | . 6 6 . . 7 . . Grunt 28 | . 10 . . . 5 13 . Sentry 10 | . . . . . 5 3 2 Hunter 1 | . . . . . 1 . . Programmer 1 | . . . . . . 1 . Best Kill Streak 7 | 3 7 3 . . 4 3 1 Combat Bots Only 7 | . 7 3 . . 4 3 1 Max Kills in Single Turn 4 | 1 1 2 . . 4 1 1 Gunslinging . | . . . . . . . . Exploded 4 | . . 2 . . 4 1 . Melee 1 | . . . . . . 1 1 Uniques/NPCs Destroyed . | . . . . . . . . Combat | -11 -10 -10 -10 -9 -8 -8 -8 -------- Run | Yrd Mat Min Exi Min Mat Gar Mat Hostile Shots Fired 441 | . 70 6 . 19 139 180 27 Missed 110 | . 14 . . 6 35 46 9 Damage Taken 4684 | . 586 74 . 286 1477 2028 233 Core 733 | . 143 16 . 23 214 292 45 Absorbed by Shields 112 | . . . . . . 96 16 Redirected to Shielding 110 | . . . . . 110 . . Core Remaining (%) 63 | 100 . . . 27 . . . Volleys Fired 200 | 3 65 5 . 5 71 50 1 Largest 2 | 2 2 1 . 2 2 2 1 Hottest 140 | 40 140 30 . 50 100 134 5 Shots Fired 364 | 6 118 5 . 6 134 94 1 Gun 337 | 6 104 2 . 4 128 93 . Cannon . | . . . . . . . . Launcher 10 | . . 3 . 2 4 1 . Special 17 | . 14 . . . 2 . 1 Kinetic 280 | 6 81 2 . 4 114 73 . Thermal 36 | . 14 . . . 2 20 . Explosive 10 | . . 3 . 2 4 1 . Electromagnetic 37 | . 23 . . . 14 . . Robot Hit Streak 23 | 5 11 1 . . 23 21 3 Robot Miss Streak 4 | . 2 1 . 3 4 2 . Penetration Max . | . . . . . . . . Secondary Targets 5 | . 1 . . . 2 2 . Max Gunslinging Chain 1 | . 1 . . . 1 1 . Shots Hit Robots 256 | 5 67 1 . . 95 79 9 Core Hits 127 | 4 32 5 . 2 42 40 2 Critical Kills 3 | . . . . . 2 1 . Critical Parts Destroyed . | . . . . . . . . Critical Strikes 10 | . . . . . 2 6 2 Burn 1 | . . . . . . 1 . Destroy 3 | . . . . . 2 1 . Sever 6 | . . . . . . 4 2 Melee Attacks 22 | . . . . . . 9 13 Impact . | . . . . . . . . Slashing 22 | . . . . . . 9 13 Piercing . | . . . . . . . . Sneak Attacks . | . . . . . . . . Combat Hostiles . | . . . . . . . . Follow-up Attacks . | . . . . . . . . Damage Inflicted 4627 | 60 874 247 . 42 1604 1521 279 Guns 3202 | 60 874 14 . . 1068 1186 . Cannons . | . . . . . . . . Explosions 918 | . . 233 . 42 536 107 . Melee 507 | . . . . . . 228 279 Ramming . | . . . . . . . . Kinetic 2644 | 60 765 14 . . 941 864 . Thermal 579 | . . . . . 257 322 . Explosive 661 | . . 233 . 42 279 107 . Electromagnetic 236 | . 109 . . . 127 . . Impact . | . . . . . . . . Slashing 507 | . . . . . . 228 279 Piercing . | . . . . . . . . Highest Corruption 4 | . . . . . . 3 4 Average Corruption 3 | . . . . . . 2 3 Corruption Purged . | . . . . . . . . Corruption Blocked . | . . . . . . . . Effects 9 | . . . . . . 4 5 Matter Fused 4 | . . . . . . 1 3 Heat Flow Errors 3 | . . . . . . 1 2 Data Loss (minor) 2 | . . . . . . 2 . Overload Shots . | . . . . . . . . Overflow Damage 94 | . . 27 . . 67 . . Projectiles . | . . . . . . . . Explosions 94 | . . 27 . . 67 . . Melee . | . . . . . . . . Knockbacks . | . . . . . . . . Impact . | . . . . . . . . Kinetic . | . . . . . . . . Secondary . | . . . . . . . . Self-Inflicted Damage 100 | . . 22 . 24 54 . . Shots 4 | . . 1 . 1 2 . . Rammed . | . . . . . . . . Targets Rammed . | . . . . . . . . Kicked . | . . . . . . . . Crushed . | . . . . . . . . Highest Temperature 247 | . 86 . . . 14 101 247 Average Temperature 37 | . 22 . . . 5 45 139 Received Heat Transfer 1930 | . 261 . . 20 540 1049 60 Siege Activations . | . . . . . . . . Robots Corrupted . | . . . . . . . . Combat Hostiles . | . . . . . . . . Parts Fried 1 | . . . . . 1 . . Impact Corruptions . | . . . . . . . . Robots Melted . | . . . . . . . . Combat Hostiles . | . . . . . . . . Parts Melted 2 | . . . . . 1 1 . Heat Transferred 890 | . . . . . 150 740 . Parts Sabotaged . | . . . . . . . . Parts Stolen . | . . . . . . . . Parts Stripped . | . . . . . . . . Power Chain Reactions 1 | . . . . . 1 . . Alert | -11 -10 -10 -10 -9 -8 -8 -8 ------- Run | Yrd Mat Min Exi Min Mat Gar Mat Peak Influence 440 | 15 295 286 . 107 240 440 248 Initial 214 | . 9 98 . . 3 73 214 Average 144 | 3 93 164 . 32 109 272 176 Maximum Alert Level 2 | . 1 1 . . 1 2 1 Low Security (%) 70 | 100 79 71 . 100 85 23 67 Level 1 29 | . 20 28 . . 14 73 32 Level 2 . | . . . . . . 2 . Level 3 . | . . . . . . . . Level 4 . | . . . . . . . . Level 5 . | . . . . . . . . High Security . | . . . . . . . . Max Security . | . . . . . . . . Squads Dispatched 14 | . 5 . . . 6 . 3 Investigation 4 | . 3 . . . . . 1 Extermination . | . . . . . . . . Reinforcement 5 | . 2 . . . 1 . 2 Assault . | . . . . . . . . Garrison 5 | . . . . . 5 . . Intercept . | . . . . . . . . Searches Triggered . | . . . . . . . . Construction Impeded 1 | . . . . . 1 . . Haulers Reinforced . | . . . . . . . . Active Scanning Responses . | . . . . . . . . Cargo Convoy Interrupts . | . . . . . . . . Stealth | -11 -10 -10 -10 -9 -8 -8 -8 --------- Run | Yrd Mat Min Exi Min Mat Gar Mat Distress Signals 4 | . 2 . . . . . 2 Communications Jammed . | . . . . . . . . Distress Signals . | . . . . . . . . Times Spotted 101 | . 30 8 . 12 19 24 8 Peak Tracking Total 7 | . 7 3 . 7 4 7 6 Tactical Retreats 12 | . 4 . . . . 6 2 Traps | -11 -10 -10 -10 -9 -8 -8 -8 ------- Run | Yrd Mat Min Exi Min Mat Gar Mat Traps Triggered 8 | . 2 . . . . 6 . Indirectly . | . . . . . . . . Trap Hack Attempts . | . . . . . . . . Triggered . | . . . . . . . . Disarmed . | . . . . . . . . Reprogrammed . | . . . . . . . . Reused . | . . . . . . . . Traps Extracted . | . . . . . . . . Installed . | . . . . . . . . Triggered . | . . . . . . . . Machines | -11 -10 -10 -10 -9 -8 -8 -8 ---------- Run | Yrd Mat Min Exi Min Mat Gar Mat Machines Disabled 6 | . . . . 2 4 . . Max in Single Turn 2 | . . . . 2 2 . . Machines Repaired . | . . . . . . . . Machines Dismantled . | . . . . . . . . Machines Sabotaged . | . . . . . . . . Overloaded Fab Kills . | . . . . . . . . Hacking | -11 -10 -10 -10 -9 -8 -8 -8 --------- Run | Yrd Mat Min Exi Min Mat Gar Mat Machines Accessed 18 | . 5 1 2 . 3 2 5 Terminals 12 | . 5 1 . . 1 2 3 Fabricators . | . . . . . . . . Repair Stations 1 | . . . . . . . 1 Recycling Units . | . . . . . . . . Scanalyzers 2 | . . . . . 1 . 1 Garrison Access 1 | . . . . . 1 . . Total Hacks 52 | . 22 2 2 . 7 4 15 Successful 32 | . 11 2 2 . 5 1 11 Failed 20 | . 11 . . . 2 3 4 Catastrophic 7 | . 4 . . . . 1 2 Database Lockouts . | . . . . . . . . Manual 20 | . 17 . . . . . 3 Terminals 38 | . 22 2 . . 4 4 6 Fabricators . | . . . . . . . . Repair Stations 2 | . . . . . . . 2 Recycling Units . | . . . . . . . . Scanalyzers 9 | . . . . . 2 . 7 Garrison Access 1 | . . . . . 1 . . Terminal Hacks 15 | . 6 2 2 . 2 1 2 Record 3 | . . 1 2 . . . . Robot Analysis 1 | . 1 . . . . . . Open Door 1 | . . . . . . 1 . Branch Access Points 1 | . 1 . . . . . . Emergency Access Points 3 | . 1 . . . 1 . 1 Unreport Threat 1 | . . . . . . . 1 Locate Traps 1 | . 1 . . . . . . Hauler Manifests 1 | . 1 . . . . . . Zone Layout 3 | . 1 1 . . 1 . . Fabricator Hacks . | . . . . . . . . Repair Station Hacks 1 | . . . . . . . 1 Scan Component 1 | . . . . . . . 1 Recycling Unit Hacks . | . . . . . . . . Scanalyzer 9 | . . . . . 2 . 7 Insert Component 4 | . . . . . 1 . 3 Analyze 5 | . . . . . 1 . 4 Garrison Access Hacks 1 | . . . . . 1 . . Unlock Access 1 | . . . . . 1 . . Unauthorized Hacks 6 | . 5 . . . . . 1 Terminals 6 | . 5 . . . . . 1 Track 3 | . 3 . . . . . . Botnet 3 | . 2 . . . . . 1 Fabricators . | . . . . . . . . Repair Stations . | . . . . . . . . Recycling Units . | . . . . . . . . Scanalyzers . | . . . . . . . . Garrison Access . | . . . . . . . . Data Cores Recovered . | . . . . . . . . Used . | . . . . . . . . Hacking Detections 12 | . 5 1 . . 1 2 3 Full Trace Events 3 | . 1 . . . . 1 1 Feedback Events 1 | . . . . . . . 1 Corruption 1 | . . . . . . . 1 Feedback Blocked . | . . . . . . . . Robot Schematics Acquired . | . . . . . . . . Robots Built . | . . . . . . . . Authchips . | . . . . . . . . Time . | . . . . . . . . Total Robot Build Rating . | . . . . . . . . Part Schematics Acquired 4 | . . . . . 1 . 3 Parts Built . | . . . . . . . . Authchips . | . . . . . . . . Time . | . . . . . . . . Total Part Build Rating . | . . . . . . . . Parts Repaired . | . . . . . . . . Time . | . . . . . . . . Parts Recycled . | . . . . . . . . Recycled Matter . | . . . . . . . . Retrieved Matter . | . . . . . . . . Retrieved Components . | . . . . . . . . Parts Scanalyzed 4 | . . . . . 1 . 3 Part Schematics Acquired 4 | . . . . . 1 . 3 Parts Damaged . | . . . . . . . . Bothacking | -11 -10 -10 -10 -9 -8 -8 -8 ------------ Run | Yrd Mat Min Exi Min Mat Gar Mat Used RIF Installer 1 | . . . . . . 1 . Robots Hacked 1 | . . . . . . . 1 Non-combat 1 | . . . . . . . 1 Combat . | . . . . . . . . Robot Hacks Applied 1 | . . . . . . . 1 map_walls 1 | . . . . . . . 1 Relay Couplers Released 4 | . . . . . . 4 . Programmers 4 | . . . . . . 4 . Attached 1 | . . . . . . . 1 Fabnet Peak Effective % . | . . . . . . . . Robots Rewired . | . . . . . . . . Allies Hacked . | . . . . . . . . Hacks Repelled . | . . . . . . . . Allies | -11 -10 -10 -10 -9 -8 -8 -8 -------- Run | Yrd Mat Min Exi Min Mat Gar Mat Total Allies 6 | . . 3 . 2 . 1 . Largest Group 4 | . . 3 2 4 . 1 . Highest-Rated Group 65 | . . 40 24 65 . 25 . Highest-Rated Ally 31 | . . 16 16 31 . 25 . Total Orders . | . . . . . . . . Ally Attacks 44 | . . 33 . 5 . 6 . Total Damage 556 | . . 263 . 83 . 210 . Kills 8 | . . 4 . 3 . 1 . Allies Corrupted . | . . . . . . . . Allies Melted . | . . . . . . . . Intel | -11 -10 -10 -10 -9 -8 -8 -8 ------- Run | Yrd Mat Min Exi Min Mat Gar Mat Robot Analysis Total 1 | . 1 . . . . . . Derelict Logs Recovered 1 | . . 1 . . . . . Drone Launches . | . . . . . . . . Drone Recoveries . | . . . . . . . . Exploration | -11 -10 -10 -10 -9 -8 -8 -8 ------------- Run | Yrd Mat Min Exi Min Mat Gar Mat Turns Passed 5872 | 73 1279 954 829 179 1315 859 384 Spaces Moved 3200 | 50 797 567 516 100 614 371 185 Core 2 | 2 . . . . . . . Treads 1969 | . 153 567 516 98 254 196 185 Legs 535 | . . . . . 360 175 . Wheels 694 | 48 644 . . 2 . . . Hover . | . . . . . . . . Flight . | . . . . . . . . Fastest Speed 50 | 50 90 160 160 115 110 110 160 Average Speed 144 | 89 115 160 160 159 144 156 160 Slowest Speed 330 | 100 160 160 160 160 260 330 160 Overloaded Moves . | . . . . . . . . Propulsion Burnouts . | . . . . . . . . Robots Hopped . | . . . . . . . . Cave-ins Triggered . | . . . . . . . . Exploration Rate (%) 48 | 4 85 97 89 27 19 46 24 Regions Visited 7 Branch Regions 3 Pre-discovered Areas . | . . . . . . . . Known Exits Taken 2 | . 1 . . . 1 . . Unknown Exits Taken 4 | 1 . 1 1 1 . . . Scrap Searched 1 | . . 1 . . . . . Spaces Dug 57 | . 14 18 . 7 14 . 4 Terrain Destroyed 131 | . 14 24 . 7 79 3 4 Melee 4 | . . . . . . . 4 Projectile 16 | . 14 . . . 2 . . AOE 111 | . . 24 . 7 77 3 . Terrain Rammed . | . . . . . . . . Walls Destroyed . | . . . . . . . . Machines Disabled . | . . . . . . . . Actions | -11 -10 -10 -10 -9 -8 -8 -8 --------- Run | Yrd Mat Min Exi Min Mat Gar Mat Total 4015 | 68 1005 609 521 114 904 540 254 Wait 381 | 1 119 30 . 8 171 19 33 Move 3193 | 49 796 566 515 99 613 370 185 Hop . | . . . . . . . . Pick Up 51 | 7 7 3 3 . 7 20 4 Fast Attach 29 | 7 1 . . . 10 8 3 Attach 37 | . 2 . . 2 13 17 3 Detach 3 | . 1 . . . . 1 1 Swap 44 | 1 13 2 . . 12 11 5 Drop 34 | . 1 3 3 . 7 14 6 Fire 200 | 3 65 5 . 5 71 50 1 Melee 22 | . . . . . . 9 13 Ram . | . . . . . . . . Kick . | . . . . . . . . Crush . | . . . . . . . . Escape Stasis 21 | . . . . . . 21 . Rewire . | . . . . . . . . Trap . | . . . . . . . . Miscellaneous . | . . . . . . . . Route ------- -11/Scrapyard -10/Materials (discovered 3 exits: [*Mat x2] / *Min) -10/Mines (discovered 3 exits: [*Mat x2] / *Exi) -10/Exiles -9/Mines -8/Materials -8/Garrison -8/Materials History --------- Turn | Location | Event 16 | -11/Scrapyard | Discovered new exit (range 15) 74 | -11/Scrapyard | Entered Materials 178 | -10/Materials | Discovered new exit (range 12) 305 | -10/Materials | Build established: Mutant 422 | -10/Materials | Discovered new exit (range 10) 880 | -10/Materials | Identified exit to Mines 1078 | -10/Materials | Destroyed 7 combat bots 1307 | -10/Materials | Core integrity fell below 50% 1353 | -10/Materials | Entered Mines 1397 | -10/Mines | Assisted by bots powering up and referring to "LRC-V3" 1444 | -10/Mines | Learned Materials terminal intel 1613 | -10/Mines | Discovered new exit (range 10) 1941 | -10/Mines | Discovered new exit (range 7) 2071 | -10/Mines | Deemed a non-threat by the Exiles lab entrance 2071 | -10/Mines | Discovered new exit (range 5) 2307 | -10/Mines | Entered Exiles 2307 | -10/Exiles | Found Exiles lab abandoned 2307 | -10/Exiles | Accompanied by 2 allies 3122 | -10/Exiles | Discovered new exit (range 11) 3136 | -10/Exiles | Entered Mines 3136 | -9/Mines | Accompanied by 2 allies 3173 | -9/Mines | Met a Derelict bent on vengeance 3243 | -9/Mines | Discovered new exit (range 10) 3283 | -9/Mines | Assembled infested the area 3315 | -9/Mines | Entered Materials 3315 | -8/Materials | Evolved 4 slots: Propulsion x1, Utility x3 3316 | -8/Materials | Loaded intel: 12 terminal locations 3334 | -8/Materials | Lost 4 allies 3345 | -8/Materials | Lost 4 parts (3n1w) 3764 | -8/Materials | Build established: Scavenger-Mutant 3997 | -8/Materials | Garrison activated, responded to threat 4285 | -8/Materials | Build established: Mutant 4442 | -8/Materials | Garrison activated, responded to threat 4512 | -8/Materials | Lost 5 parts (2p1n2w) 4621 | -8/Materials | Identified exit to Garrison 4630 | -8/Materials | Entered Garrison 4783 | -8/Garrison | Core integrity fell below 50% 4872 | -8/Garrison | Triggered checkpoint 4942 | -8/Garrison | Lost 13 parts (2p7n1u3w) 4999 | -8/Garrison | Rescued a captive Derelict 5020 | -8/Garrison | Build established: Scavenger-Mutant 5112 | -8/Garrison | Triggered checkpoint 5140 | -8/Garrison | Triggered checkpoint 5166 | -8/Garrison | Triggered checkpoint 5186 | -8/Garrison | Core integrity fell below 20% 5334 | -8/Garrison | Triggered checkpoint 5404 | -8/Garrison | Installed Relay Interface Framework 5471 | -8/Garrison | Discovered new exit (range 12) 5489 | -8/Garrison | Entered Materials 5873 | -8/Materials | Destroyed by Y-45 Defender with Heavy Assault Rifle Last Messages --------------- Feedback: System corruption (+1%). 05751_ ALERT: Suspicious activity at Terminal M011. Dispatching Investigation squad. 05753_ System corrupted: Heat flow error (+123). 05783_ K-01 Serf collects debris. 05821_ Dropped Lgt. Treads. 05823_ Acquired Hacking Suite. 05824_ Dropped Hardlight Generator. 05824_ Dropped Lgt. Treads. 05828_ Acquired Hvy. Armor Plating. 05835_ Connecting with Repair Station... >>Scan(Remote Datajack) Scanning Remote Datajack... Ready to Repair: Remote Datajack Rating: 4 Time: 22 05864_ System corrupted: Heat flow error (+257). 05865_ Y-45 Defender Lgt. Armor Plating severed. 05867_ Y-45 Defender destroyed. Map ----- +----------------------------------------------------+ | ????????????????##############? | | ????????????????# !! #? | | ???????? ????? ?# """ ] #? | | ???????# ????? ## """ !] #? | | ???????# """ ## """ #? | | ???????# """ ## ## | | ???????# ########+####### | | ???????# """ # # # | | ???????#/ """ # # * # | | ######## """ !# + """ # | | #! # # # """ # | | # """ #? ?# # """ ! %+ | | # """ ####+#######?# # | | # """ # ###### = # | | # # | | # """ # | | # """ / T" | | # """ # | | #! # | | # """ # #######"T"##T# # | | # """ ### ###?????#"""#### # | | # """ #?# #???????#####??# # | | # #?# #??????????????# # | | ########?# #??????????????# # | | #*!=%Y=#?# #??????????????# # | | # ==""@#?# #??????????????# # | | # !"""#?# ###????????????# # | | # R"#? ] #????????????# # | | #= """#?? ####?????????# ? | | # # ????????? | | # """" + ????????? | | # """" # ! ????????? | | # """" # ####?????????#?? | | # #? #????????????### | | # """" #??#+#?##?????????????#? | | # """" #?????????????????????#? | | # """" #?????????????????????#? | | # ?? #??????????????????????? | | ##??# ##??????????????????????? | | ?????#????????????????????????? | | ??????????????????????????????? | | ??????????????????????????????? | | ??????????????????????????????? | | ??????????????????????????????? | | ??????????????????????????????? | | ??????????????????????????????? | | ??????????????????????????????? | | ??????????????????????????????? | | ??????????????????????????????? | | ??????????????????????????????? | +----------------------------------------------------+ Best States ------------- Heat Dissipation 79 Energy Generation 18 Energy Capacity 265 Matter Stores 300 Matter Capacity 300 Sight Range 16 Terrain Scan Density 10 Base Temperature (-) 100 Armor Coverage 600 Propulsion Shielding 66 Evasion (%) 55 Melee Accuracy 5 Recoil Reduction 3 Relay Coupler Types 1 Relay Coupler Value 21 Item Schematics ----------------- Nuclear Core | -8/Materials | Scanalyzed Remote Datajack | -8/Materials | Scanalyzed Lgt. Nuclear Core | -8/Materials | Scanalyzed Hcp. Storage Unit | -8/Materials | Scanalyzed Robot Schematics ------------------ None Fabricated ------------ Nothing Alien Tech Used ----------------- None Achievements -------------- None Challenges ------------ None Game ------ Seed ShrapnelWarpPerforator Manual? 0 Play Time 00:51:29 Cumulative 353.5 hours Start 2024.12.26 @ 21:33:09 End 2024.12.26 @ 22:22:56 Sessions 1 Manual Loads 0 Difficulty Rogue Special Mode None Game No. 144 Rogue 144 Adventurer 0 Explorer 0 Win Type - Total 12 Types 10/0/1/1/0/0/0/0/0 Lore% 51 Gallery% 75 Achievement% 67 Wizard Run 0 Options --------- Layout 0 ASCII 0 Keyboard 0 Movement Numpad Keybinds 0 Fullscreen 1 Font 24/Smallcaps Map View 76x50 Zoom Use 0% Tactical HUD 1 Map Filters NONE Filters NONE Steam 1 RUN: 43f21b69-c637-4af8-a8ef-b67542533031